{"text_format":"1","workbook":"xlsx","n_sheets":3,"sheets":["Spis wyposażenia","Wykaz spisu wyposażenia","Wyszukiwanie pojemnika"],"not_rendered":{"charts":0,"images":0,"macros":1,"external_links":0,"defined_names":8,"comments":0,"pivot_tables":0},"unopened":[],"bounds":{"document_bytes":16777216,"sheet_cells":100000,"rows_first":2000,"rows_last":500,"rows_between":2000,"halvings":0,"cell_chars":16384,"cell_head_chars":4096},"cells_cut":0,"cells_raw":0,"read":"whole","date_system":"1900"}

{"sheet":"Spis wyposażenia","index":0,"n_rows":15,"n_cols":11,"rows_kept":15,"cut":false,"hidden":false,"merged":[]}
[null,"WYKAZ ZAPASÓW"]
[null,"ŁĄCZNA WARTOŚĆ ZAPASÓW:","POZYCJE MAGAZYNOWE:","LICZBA POJEMNIKÓW:","LISTA WYBORU ZAPASÓW","WYSZUKIWANIE POJEMNIKA"]
[null,{"$f":"SUM(Spis_wyposażenia[WARTOŚĆ ZAPASÓW])","v":4649},{"$f":"COUNTA(Spis_wyposażenia[OPIS])","v":11},{"$f":"SUMPRODUCT((1/COUNTIF(Spis_wyposażenia[NR POJEMNIKA],Spis_wyposażenia[NR POJEMNIKA]&\"\")))","v":6}]
[null,"JEDNOSTKA MAGAZYNOWA","OPIS","NR POJEMNIKA","LOKALIZACJA","JEDNOSTKA","ILOŚĆ","ILOŚĆ DO PONOWNEGO ZAMÓWIENIA","KOSZT","WARTOŚĆ ZAPASÓW","PONOWNE ZAMÓWIENIE"]
[null,"SP7875","Pozycja 1","T345",{"$f":"IFERROR(VLOOKUP(Spis_wyposażenia[[#This Row],[NR POJEMNIKA]],Wyszukiwanie_pojemnika[],3,FALSE),\"\")","v":"Rząd 2, miejsce 1"},"Sztuka",20,10,30,{"$f":"Spis_wyposażenia[[#This Row],[ILOŚĆ]]*Spis_wyposażenia[[#This Row],[KOSZT]]","v":600},{"$f":"IFERROR(IF(Spis_wyposażenia[[#This Row],[ILOŚĆ]]<=Spis_wyposażenia[[#This Row],[ILOŚĆ DO PONOWNEGO ZAMÓWIENIA]],1,0),0)","v":0}]
[null,"TR87680","Pozycja 2","T345",{"$f":"IFERROR(VLOOKUP(Spis_wyposażenia[[#This Row],[NR POJEMNIKA]],Wyszukiwanie_pojemnika[],3,FALSE),\"\")","v":"Rząd 2, miejsce 1"},"Sztuka",30,15,40,{"$f":"Spis_wyposażenia[[#This Row],[ILOŚĆ]]*Spis_wyposażenia[[#This Row],[KOSZT]]","v":1200},{"$f":"IFERROR(IF(Spis_wyposażenia[[#This Row],[ILOŚĆ]]<=Spis_wyposażenia[[#This Row],[ILOŚĆ DO PONOWNEGO ZAMÓWIENIA]],1,0),0)","v":0}]
[null,"MK676554","Pozycja 3","T5789",{"$f":"IFERROR(VLOOKUP(Spis_wyposażenia[[#This Row],[NR POJEMNIKA]],Wyszukiwanie_pojemnika[],3,FALSE),\"\")","v":"Rząd 1, miejsce 1"},"Sztuka",10,5,5,{"$f":"Spis_wyposażenia[[#This Row],[ILOŚĆ]]*Spis_wyposażenia[[#This Row],[KOSZT]]","v":50},{"$f":"IFERROR(IF(Spis_wyposażenia[[#This Row],[ILOŚĆ]]<=Spis_wyposażenia[[#This Row],[ILOŚĆ DO PONOWNEGO ZAMÓWIENIA]],1,0),0)","v":0}]
[null,"YE98767","Pozycja 4","T9876",{"$f":"IFERROR(VLOOKUP(Spis_wyposażenia[[#This Row],[NR POJEMNIKA]],Wyszukiwanie_pojemnika[],3,FALSE),\"\")","v":"Rząd 3, miejsce 2"},"Pudełko (10 szt.)",40,10,15,{"$f":"Spis_wyposażenia[[#This Row],[ILOŚĆ]]*Spis_wyposażenia[[#This Row],[KOSZT]]","v":600},{"$f":"IFERROR(IF(Spis_wyposażenia[[#This Row],[ILOŚĆ]]<=Spis_wyposażenia[[#This Row],[ILOŚĆ DO PONOWNEGO ZAMÓWIENIA]],1,0),0)","v":0}]
[null,"XR23423","Pozycja 5","T098",{"$f":"IFERROR(VLOOKUP(Spis_wyposażenia[[#This Row],[NR POJEMNIKA]],Wyszukiwanie_pojemnika[],3,FALSE),\"\")","v":"Rząd 3, miejsce 1"},"Sztuka",12,10,26,{"$f":"Spis_wyposażenia[[#This Row],[ILOŚĆ]]*Spis_wyposażenia[[#This Row],[KOSZT]]","v":312},{"$f":"IFERROR(IF(Spis_wyposażenia[[#This Row],[ILOŚĆ]]<=Spis_wyposażenia[[#This Row],[ILOŚĆ DO PONOWNEGO ZAMÓWIENIA]],1,0),0)","v":0}]
[null,"PW98762","Pozycja 6","T345",{"$f":"IFERROR(VLOOKUP(Spis_wyposażenia[[#This Row],[NR POJEMNIKA]],Wyszukiwanie_pojemnika[],3,FALSE),\"\")","v":"Rząd 2, miejsce 1"},"Sztuka",7,10,50,{"$f":"Spis_wyposażenia[[#This Row],[ILOŚĆ]]*Spis_wyposażenia[[#This Row],[KOSZT]]","v":350},{"$f":"IFERROR(IF(Spis_wyposażenia[[#This Row],[ILOŚĆ]]<=Spis_wyposażenia[[#This Row],[ILOŚĆ DO PONOWNEGO ZAMÓWIENIA]],1,0),0)","v":1}]
[null,"BM87684","Pozycja 7","T349",{"$f":"IFERROR(VLOOKUP(Spis_wyposażenia[[#This Row],[NR POJEMNIKA]],Wyszukiwanie_pojemnika[],3,FALSE),\"\")","v":"Rząd 1, miejsce 2"},"Sztuka",10,5,10,{"$f":"Spis_wyposażenia[[#This Row],[ILOŚĆ]]*Spis_wyposażenia[[#This Row],[KOSZT]]","v":100},{"$f":"IFERROR(IF(Spis_wyposażenia[[#This Row],[ILOŚĆ]]<=Spis_wyposażenia[[#This Row],[ILOŚĆ DO PONOWNEGO ZAMÓWIENIA]],1,0),0)","v":0}]
[null,"BH67655","Pozycja 8","T5789",{"$f":"IFERROR(VLOOKUP(Spis_wyposażenia[[#This Row],[NR POJEMNIKA]],Wyszukiwanie_pojemnika[],3,FALSE),\"\")","v":"Rząd 1, miejsce 1"},"Sztuka",19,10,3,{"$f":"Spis_wyposażenia[[#This Row],[ILOŚĆ]]*Spis_wyposażenia[[#This Row],[KOSZT]]","v":57},{"$f":"IFERROR(IF(Spis_wyposażenia[[#This Row],[ILOŚĆ]]<=Spis_wyposażenia[[#This Row],[ILOŚĆ DO PONOWNEGO ZAMÓWIENIA]],1,0),0)","v":0}]
[null,"WT98768","Pozycja 9","T9875",{"$f":"IFERROR(VLOOKUP(Spis_wyposażenia[[#This Row],[NR POJEMNIKA]],Wyszukiwanie_pojemnika[],3,FALSE),\"\")","v":"Rząd 2, miejsce 2"},"Opakowanie (5 szt.)",20,30,14,{"$f":"Spis_wyposażenia[[#This Row],[ILOŚĆ]]*Spis_wyposażenia[[#This Row],[KOSZT]]","v":280},{"$f":"IFERROR(IF(Spis_wyposażenia[[#This Row],[ILOŚĆ]]<=Spis_wyposażenia[[#This Row],[ILOŚĆ DO PONOWNEGO ZAMÓWIENIA]],1,0),0)","v":1}]
[null,"TS3456","Pozycja 10","T349",{"$f":"IFERROR(VLOOKUP(Spis_wyposażenia[[#This Row],[NR POJEMNIKA]],Wyszukiwanie_pojemnika[],3,FALSE),\"\")","v":"Rząd 1, miejsce 2"},"Sztuka",15,8,60,{"$f":"Spis_wyposażenia[[#This Row],[ILOŚĆ]]*Spis_wyposażenia[[#This Row],[KOSZT]]","v":900},{"$f":"IFERROR(IF(Spis_wyposażenia[[#This Row],[ILOŚĆ]]<=Spis_wyposażenia[[#This Row],[ILOŚĆ DO PONOWNEGO ZAMÓWIENIA]],1,0),0)","v":0}]
[null,"WDG123","Pozycja 11","T349",{"$f":"IFERROR(VLOOKUP(Spis_wyposażenia[[#This Row],[NR POJEMNIKA]],Wyszukiwanie_pojemnika[],3,FALSE),\"\")","v":"Rząd 1, miejsce 2"},"Sztuka",25,15,8,{"$f":"Spis_wyposażenia[[#This Row],[ILOŚĆ]]*Spis_wyposażenia[[#This Row],[KOSZT]]","v":200},{"$f":"IFERROR(IF(Spis_wyposażenia[[#This Row],[ILOŚĆ]]<=Spis_wyposażenia[[#This Row],[ILOŚĆ DO PONOWNEGO ZAMÓWIENIA]],1,0),0)","v":0}]

{"sheet":"Wykaz spisu wyposażenia","index":1,"n_rows":9,"n_cols":9,"rows_kept":9,"cut":false,"hidden":false,"merged":[]}
[null,"LISTA WYBORU ZAPASÓW"]
[null,null,"WYKAZ ZAPASÓW"]
[]
[null,"NR ZAMÓWIENIA","JEDNOSTKA MAGAZYNOWA","WYBRANA ILOŚĆ","DOSTĘPNA ILOŚĆ","OPIS POZYCJI","JEDNOSTKA","NR POJEMNIKA","LOKALIZACJA"]
[null,"TP001-1","SP7875",3,{"$f":"IFERROR(VLOOKUP(Wykaz_spisu_wyposażenia[[#This Row],[JEDNOSTKA MAGAZYNOWA]],Spis_wyposażenia[],6,FALSE),\"\")","v":20},{"$f":"IFERROR(VLOOKUP(Wykaz_spisu_wyposażenia[[#This Row],[JEDNOSTKA MAGAZYNOWA]],Spis_wyposażenia[],2,FALSE),\"\")","v":"Pozycja 1"},{"$f":"IFERROR(VLOOKUP(Wykaz_spisu_wyposażenia[[#This Row],[JEDNOSTKA MAGAZYNOWA]],Spis_wyposażenia[],5,FALSE),\"\")","v":"Sztuka"},{"$f":"IFERROR(VLOOKUP(Wykaz_spisu_wyposażenia[[#This Row],[JEDNOSTKA MAGAZYNOWA]],Spis_wyposażenia[],3,FALSE),\"\")","v":"T345"},{"$f":"IFERROR(VLOOKUP(Wykaz_spisu_wyposażenia[[#This Row],[JEDNOSTKA MAGAZYNOWA]],Spis_wyposażenia[],4,FALSE),\"\")","v":"Rząd 2, miejsce 1"}]
[null,"TP001-1","YE98767",1,{"$f":"IFERROR(VLOOKUP(Wykaz_spisu_wyposażenia[[#This Row],[JEDNOSTKA MAGAZYNOWA]],Spis_wyposażenia[],6,FALSE),\"\")","v":40},{"$f":"IFERROR(VLOOKUP(Wykaz_spisu_wyposażenia[[#This Row],[JEDNOSTKA MAGAZYNOWA]],Spis_wyposażenia[],2,FALSE),\"\")","v":"Pozycja 4"},{"$f":"IFERROR(VLOOKUP(Wykaz_spisu_wyposażenia[[#This Row],[JEDNOSTKA MAGAZYNOWA]],Spis_wyposażenia[],5,FALSE),\"\")","v":"Pudełko (10 szt.)"},{"$f":"IFERROR(VLOOKUP(Wykaz_spisu_wyposażenia[[#This Row],[JEDNOSTKA MAGAZYNOWA]],Spis_wyposażenia[],3,FALSE),\"\")","v":"T9876"},{"$f":"IFERROR(VLOOKUP(Wykaz_spisu_wyposażenia[[#This Row],[JEDNOSTKA MAGAZYNOWA]],Spis_wyposażenia[],4,FALSE),\"\")","v":"Rząd 3, miejsce 2"}]
[null,"TP001-1","BM87684",2,{"$f":"IFERROR(VLOOKUP(Wykaz_spisu_wyposażenia[[#This Row],[JEDNOSTKA MAGAZYNOWA]],Spis_wyposażenia[],6,FALSE),\"\")","v":10},{"$f":"IFERROR(VLOOKUP(Wykaz_spisu_wyposażenia[[#This Row],[JEDNOSTKA MAGAZYNOWA]],Spis_wyposażenia[],2,FALSE),\"\")","v":"Pozycja 7"},{"$f":"IFERROR(VLOOKUP(Wykaz_spisu_wyposażenia[[#This Row],[JEDNOSTKA MAGAZYNOWA]],Spis_wyposażenia[],5,FALSE),\"\")","v":"Sztuka"},{"$f":"IFERROR(VLOOKUP(Wykaz_spisu_wyposażenia[[#This Row],[JEDNOSTKA MAGAZYNOWA]],Spis_wyposażenia[],3,FALSE),\"\")","v":"T349"},{"$f":"IFERROR(VLOOKUP(Wykaz_spisu_wyposażenia[[#This Row],[JEDNOSTKA MAGAZYNOWA]],Spis_wyposażenia[],4,FALSE),\"\")","v":"Rząd 1, miejsce 2"}]
[null,"TP001-1","TS3456",6,{"$f":"IFERROR(VLOOKUP(Wykaz_spisu_wyposażenia[[#This Row],[JEDNOSTKA MAGAZYNOWA]],Spis_wyposażenia[],6,FALSE),\"\")","v":15},{"$f":"IFERROR(VLOOKUP(Wykaz_spisu_wyposażenia[[#This Row],[JEDNOSTKA MAGAZYNOWA]],Spis_wyposażenia[],2,FALSE),\"\")","v":"Pozycja 10"},{"$f":"IFERROR(VLOOKUP(Wykaz_spisu_wyposażenia[[#This Row],[JEDNOSTKA MAGAZYNOWA]],Spis_wyposażenia[],5,FALSE),\"\")","v":"Sztuka"},{"$f":"IFERROR(VLOOKUP(Wykaz_spisu_wyposażenia[[#This Row],[JEDNOSTKA MAGAZYNOWA]],Spis_wyposażenia[],3,FALSE),\"\")","v":"T349"},{"$f":"IFERROR(VLOOKUP(Wykaz_spisu_wyposażenia[[#This Row],[JEDNOSTKA MAGAZYNOWA]],Spis_wyposażenia[],4,FALSE),\"\")","v":"Rząd 1, miejsce 2"}]
[null,"TP001-1","MK676554",3,{"$f":"IFERROR(VLOOKUP(Wykaz_spisu_wyposażenia[[#This Row],[JEDNOSTKA MAGAZYNOWA]],Spis_wyposażenia[],6,FALSE),\"\")","v":10},{"$f":"IFERROR(VLOOKUP(Wykaz_spisu_wyposażenia[[#This Row],[JEDNOSTKA MAGAZYNOWA]],Spis_wyposażenia[],2,FALSE),\"\")","v":"Pozycja 3"},{"$f":"IFERROR(VLOOKUP(Wykaz_spisu_wyposażenia[[#This Row],[JEDNOSTKA MAGAZYNOWA]],Spis_wyposażenia[],5,FALSE),\"\")","v":"Sztuka"},{"$f":"IFERROR(VLOOKUP(Wykaz_spisu_wyposażenia[[#This Row],[JEDNOSTKA MAGAZYNOWA]],Spis_wyposażenia[],3,FALSE),\"\")","v":"T5789"},{"$f":"IFERROR(VLOOKUP(Wykaz_spisu_wyposażenia[[#This Row],[JEDNOSTKA MAGAZYNOWA]],Spis_wyposażenia[],4,FALSE),\"\")","v":"Rząd 1, miejsce 1"}]

{"sheet":"Wyszukiwanie pojemnika","index":2,"n_rows":11,"n_cols":7,"rows_kept":11,"cut":false,"hidden":false,"merged":[]}
[null,"WYSZUKIWANIE POJEMNIKA"]
[null,"WYKAZ ZAPASÓW"]
[]
[null,"NR POJEMNIKA","OPIS","LOKALIZACJA","SZEROKOŚĆ","WYSOKOŚĆ","DŁUGOŚĆ"]
[null,"T345","Duży pojemnik","Rząd 2, miejsce 1",50,10,10]
[null,"T5789","Mały pojemnik","Rząd 1, miejsce 1",25,5,5]
[null,"T9876","Duży pojemnik","Rząd 3, miejsce 2",50,10,10]
[null,"T098","Średni pojemnik","Rząd 3, miejsce 1",30,7,10]
[null,"T349","Mały pojemnik","Rząd 1, miejsce 2",25,5,5]
[null,"T5789","Duży pojemnik","Rząd 4, miejsce 5",50,10,10]
[null,"T9875","Duży pojemnik","Rząd 2, miejsce 2",50,10,10]